bitfinex/quotes_SOLUSD_20250424
["timestamp","ask_amount","ask_price","bid_price","bid_amount"]
[1745480763944,15.463,147.35,147.34,14.16591916]
[1745480764419,0.063,147.35,147.34,18.64964886]
[1745480764740,0.063,147.35,147.34,32.81556802]
[1745480764940,0.063,147.35,147.34,14.16591916]
[1745480765919,0.063,147.35,147.33,14.16591916]
[1745480766843,0.063,147.35,147.34,14.16591916]
[1745480767921,0.063,147.39,147.35,18.64964886]
[1745480768131,0.063,147.39,147.38,14.16591916]
[1745480769538,0.063,147.39,147.37,14.16591916]
[1745480772940,0.063,147.39,147.38,14.16591916]
[1745480773163,0.063,147.39,147.38,32.81556802]
[1745480776062,0.063,147.39,147.38,40.62561759]
[1745480776438,0.063,147.39,147.38,33.84043643]
[1745480776734,0.063,147.39,147.38,34.39946802]
[1745480777363,0.063,147.39,147.38,20.23354886]
[1745480777662,0.063,147.39,147.38,34.39946802]
[1745480778437,0.063,147.39,147.38,20.23354886]
[1745480778637,0.063,147.39,147.38,34.39946802]
[1745480779075,0.063,147.39,147.38,41.18464918]
[1745480779276,0.063,147.39,147.38,42.20982384]
[1745480779457,0.063,147.39,147.38,68.20982384]
[1745480779773,0.063,147.41,147.39,18.64964886]
[1745480779973,0.063,147.41,147.4,32.81556802]
[1745480780770,0.063,147.41,147.4,33.83969835]
[1745480781441,0.063,147.41,147.4,40.62395886]
[1745480781878,0.063,147.41,147.4,54.78987802]
[1745480782248,0.063,147.41,147.4,40.62395886]
[1745480786161,0.063,147.41,147.4,32.81556802]
[1745480788881,0.063,147.41,147.4,39.59982853]
[1745480789090,0.063,147.44,147.41,18.64964886]
[1745480789387,0.063,147.44,147.43,32.81556802]
[1745480790471,0.063,147.44,147.43,40.62205515]
[1745480790672,0.063,147.44,147.43,32.81556802]
[1745480792263,0.063,147.44,147.43,33.83906648]
[1745480792958,0.063,147.44,147.43,32.81556802]
[1745480793962,0.063,147.44,147.43,33.83903212]
[1745480794980,0.063,147.44,147.43,32.81556802]
[1745480803655,0.063,147.44,147.43,33.83911281]
[1745480804185,0.063,147.44,147.43,40.62199282]
[1745480804484,0.063,147.45,147.44,34.47916802]
[1745480805095,0.063,147.47,147.46,44.64964886]
[1745480805258,0.063,147.5,147.47,18.64964886]
[1745480805460,0.063,147.5,147.49,28.33183832]
[1745480806002,0.063,147.5,147.49,14.16591916]
[1745480806164,0.063,147.5,147.47,18.64964886]
[1745480806366,0.063,147.5,147.49,14.16591916]
[1745480806786,0.063,147.5,147.47,18.64964886]
[1745480806991,0.063,147.5,147.49,32.81556802]
[1745480809374,0.063,147.5,147.49,27.70735047]
[1745480814291,0.063,147.5,147.49,9.05770161]
[1745480814594,0.063,147.5,147.47,18.64964886]
[1745480814783,0.063,147.5,147.48,9.05770161]
[1745480815472,0.063,147.5,147.45,18.64964886]
[1745480815668,0.063,147.5,147.46,9.05770161]
[1745480815874,0.063,147.5,147.45,18.64964886]
[1745480816074,0.063,147.5,147.47,9.05770161]
[1745480818281,15.72440161,147.5,147.46,9.05770161]
[1745480818597,1.69529059,147.49,147.46,9.05770161]
[1745480819386,8.47542654,147.49,147.46,9.05770161]
[1745480819582,8.47542654,147.49,147.42,62.23080644]
[1745480819783,1.69529059,147.49,147.45,9.05770161]
[1745480819987,1.69529059,147.49,147.46,9.05770161]
[1745480820377,8.47541829,147.49,147.45,9.05770161]
[1745480820798,9.05770161,147.46,147.41,18.64964886]
[1745480820990,1.69581711,147.45,147.41,27.70735047]
[1745480821704,9.05770161,147.43,147.4,0.03]
[1745480821905,10.7537499,147.43,147.4,0.03]
[1745480822493,9.05770161,147.41,147.4,0.03]
[1745480822689,15.84150189,147.41,147.4,0.03]
[1745480823707,9.05770161,147.42,147.4,0.03]
[1745480824007,1.69624553,147.41,147.4,0.03]
[1745480825109,1.6962394,147.42,147.4,9.08770161]
[1745480825291,1.6962394,147.43,147.4,9.08770161]
[1745480825604,1.6962394,147.43,147.4,0.03]
[1745480826310,17.5370546,147.43,147.4,0.03]
[1745480826515,9.05770161,147.42,147.4,0.03]
[1745480826814,1.69621948,147.41,147.4,0.03]
[1745480827490,10.75392109,147.41,147.4,0.03]
[1745480827695,38.32552109,147.41,147.4,0.03]
[1745480828086,44.56122109,147.41,147.4,0.03]
[1745480828808,51.34502137,147.41,147.4,0.03]
[1745480836534,25.34502137,147.41,147.4,0.03]
[1745480836700,9.05770161,147.37,147.36,0.03]
[1745480837012,26.03461344,147.37,147.36,0.03]
[1745480837400,31.16721379,147.37,147.36,0.03]
[1745480838224,37.95285537,147.37,147.36,0.03]
[1745480839021,23.76255341,147.37,147.36,0.03]
[1745480839320,37.95285537,147.37,147.36,0.03]
[1745480840203,16.97691183,147.37,147.36,0.03]
[1745480840911,37.95285537,147.37,147.36,0.03]
[1745480844000,16.97685539,147.39,147.36,14.22030196]
[1745480844204,15.28,147.39,147.38,14.19030196]
[1745480844928,15.28,147.39,147.38,32.83995082]
[1745480845121,15.28,147.39,147.38,18.64964886]
[1745480845336,15.28,147.39,147.38,14.19030196]
[1745480845915,232.88,147.42,147.38,14.19030196]
[1745480846139,232.88,147.42,147.41,14.19030196]
[1745480846344,15.14,147.43,147.41,14.19030196]
[1745480846345,15.14,147.43,147.42,18.64964886]
[1745480846627,15.14,147.47,147.42,47.03025278]
[1745480846826,15.14,147.47,147.46,14.19030196]
[1745480847004,15.203,147.47,147.46,14.19030196]
[1745480851811,0.063,147.47,147.46,32.83995082]
[1745480852011,0.063,147.47,147.46,14.19030196]
[1745480854528,0.063,147.47,147.44,26.0]
[1745480854836,0.063,147.47,147.46,14.19030196]
[1745480857339,0.063,147.47,147.46,20.97180202]
[1745480857639,0.063,147.47,147.46,39.62145088]
[1745480858340,0.063,147.47,147.46,25.43114892]
[1745480858521,0.063,147.47,147.41,1.6152]
[1745480858713,1.75846634,147.47,147.44,14.19030196]
[1745480859050,0.063,147.47,147.45,14.19030196]
[1745480859714,0.063,147.47,147.46,14.19030196]
[1745480859940,0.063,147.47,147.45,14.19030196]
[1745480860139,0.063,147.47,147.42,18.64964886]
[1745480860646,0.063,147.47,147.45,14.19030196]
[1745480861627,0.063,147.47,147.46,14.19030196]
[1745480862348,0.063,147.47,147.46,33.86355492]
[1745480862716,0.063,147.47,147.46,32.83995082]
[1745480863215,0.063,147.47,147.43,1.0229727]
[1745480863423,0.063,147.47,147.46,14.19030196]
[1745480865125,0.063,147.47,147.46,32.83995082]
[1745480865630,0.063,147.47,147.46,41.18315088]
[1745480866033,0.063,147.47,147.46,34.40165082]
[1745480867943,0.063,147.47,147.46,41.18315088]
[1745480868140,0.063,147.5,147.46,55.37345284]
[1745480868332,0.063,147.5,147.49,32.83995082]
[1745480869142,0.063,147.5,147.49,53.81037346]
[1745480869353,0.063,147.5,147.49,47.03025278]
[1745480870026,0.063,147.5,147.49,54.83233928]
[1745480870448,0.063,147.5,147.49,48.0522186]
[1745480871050,0.063,147.5,147.49,47.03025278]
[1745480872467,0.063,147.5,147.49,53.81037346]
[1745480872840,0.063,147.5,147.49,47.03025278]
[1745480873024,0.063,147.5,147.49,32.83995082]
[1745480873427,0.063,147.5,147.49,47.03025278]
[1745480873833,0.063,147.5,147.49,53.81037346]
[1745480874133,0.063,147.5,147.49,47.03025278]
[1745480875460,0.063,147.5,147.49,32.83995082]
[1745480875660,0.063,147.5,147.49,47.03025278]
[1745480877156,0.063,147.5,147.49,53.81037346]
[1745480877560,0.063,147.5,147.49,47.03025278]
[1745480879356,0.063,147.5,147.49,53.81037346]
[1745480879664,0.063,147.5,147.49,47.03025278]
[1745480880363,0.063,147.5,147.49,53.81037346]
[1745480880739,0.063,147.5,147.49,47.03025278]
[1745480881233,0.063,147.5,147.49,53.81037346]
[1745480882642,0.063,147.53,147.5,18.64964886]
[1745480882844,0.063,147.54,147.53,18.64964886]
[1745480883178,0.063,147.54,147.53,33.86077532]
[1745480883541,0.063,147.56,147.53,48.05107728]
[1745480883745,0.063,147.56,147.55,73.03025278]
[1745480883944,0.063,147.56,147.55,80.82789879]
[1745480884246,0.063,147.57,147.56,18.64964886]
[1745480884448,0.063,147.57,147.56,47.03025278]
[1745480885547,0.063,147.57,147.56,53.80715709]
[1745480885743,0.063,147.57,147.56,18.64964886]
[1745480885949,0.063,147.57,147.53,18.64964886]
[1745480886147,0.063,147.57,147.56,14.19030196]
[1745480888464,0.063,147.57,147.54,18.64964886]
[1745480888668,0.063,147.57,147.54,32.83995082]
[1745480888854,0.063,147.57,147.55,14.19030196]
[1745480890466,6.0779,147.57,147.5,27.02155052]
[1745480890669,14.19030196,147.56,147.51,18.64964886]
[1745480890872,14.19030196,147.56,147.52,14.19030196]
[1745480891175,21.96238616,147.57,147.53,14.19030196]
[1745480891469,7.7720842,147.57,147.53,14.19030196]
[1745480893966,7.7720842,147.57,147.5,18.64964886]
[1745480894175,7.7720842,147.57,147.53,14.19030196]
[1745480895374,7.7720842,147.57,147.54,14.19030196]
[1745480896777,7.7720842,147.57,147.53,14.19030196]
[1745480898675,7.7720842,147.57,147.54,14.19030196]
[1745480899271,0.063,147.57,147.55,14.19030196]
[1745480899674,0.063,147.57,147.56,14.19030196]
[1745480901785,0.063,147.57,147.55,14.19030196]
[1745480903658,0.063,147.57,147.56,14.19030196]
[1745480904381,0.063,147.57,147.55,14.19030196]
[1745480904588,0.063,147.57,147.56,14.19030196]
[1745480905091,0.063,147.57,147.55,14.19030196]
[1745480906089,0.063,147.57,147.52,18.64964886]
[1745480906381,0.063,147.57,147.55,14.19030196]
[1745480907899,0.063,147.57,147.54,14.19030196]
[1745480908492,0.063,147.57,147.55,14.19030196]
[1745480909289,0.063,147.57,147.55,9.05040421]
[1745480910192,0.063,147.57,147.54,9.05040421]
[1745480911096,0.063,147.57,147.55,9.05040421]
[1745480913762,0.063,147.57,147.54,9.05040421]
[1745480914167,0.063,147.57,147.53,9.05040421]
[1745480914665,9.05040421,147.55,147.51,18.64964886]
[1745480914974,10.80795859,147.57,147.52,9.05040421]
[1745480915795,10.80795859,147.57,147.51,27.70005307]
[1745480915796,9.05040421,147.56,147.51,27.70005307]
[1745480916199,9.05040421,147.56,147.52,9.05040421]
[1745480916796,1.69446674,147.55,147.52,9.05040421]
[1745480917477,1.69446674,147.55,147.51,27.70005307]
[1745480917683,10.7449234,147.56,147.51,27.70005307]
[1745480919304,9.05040421,147.53,147.48,0.063]
[1745480919477,9.05040421,147.49,147.48,0.063]
[1745480920508,15.83052489,147.49,147.48,0.063]
[1745480920799,22.41622489,147.49,147.48,0.063]
[1745480921305,27.53260828,147.49,147.48,0.063]
[1745480922075,43.20099588,147.49,147.48,0.063]
[1745480924584,29.03420828,147.49,147.48,0.063]
[1745480927707,43.20099588,147.49,147.48,0.063]
[1745480927910,69.20099588,147.49,147.48,0.063]
[1745480928316,44.20099588,147.49,147.48,1e-08]
[1745480928614,43.20099588,147.49,147.48,1e-08]
[1745480928818,44.89679763,147.49,147.48,1e-08]
[1745480931106,26.0,147.46,147.45,0.063]
[1745480931310,56.82262803,147.46,147.45,0.063]
[1745480931610,16.65584043,147.46,147.45,0.063]
[1745480931810,30.82262803,147.46,147.45,0.063]
[1745480933197,37.60412809,147.46,147.45,0.063]
[1745480933714,23.43734049,147.46,147.45,0.063]
[1745480933920,37.60412809,147.46,147.45,0.063]
[1745480934821,30.82262803,147.46,147.45,0.063]
[1745480935820,14.96,147.46,147.45,0.063]
[1745480936130,35.90828766,147.46,147.45,0.063]
[1745480936330,14.96,147.46,147.45,0.063]
[1745480941210,21.74150006,147.46,147.45,0.063]
[1745480941415,23.43701021,147.46,147.45,0.063]
[1745480941735,37.60379781,147.46,147.45,0.063]
[1745480942627,16.65551015,147.46,147.45,0.063]
[1745480943135,37.60379781,147.46,147.45,0.063]
[1745480943336,32.50449856,147.46,147.45,0.063]
[1745480944324,58.50449856,147.46,147.45,0.063]
[1745480944710,42.65551015,147.46,147.45,0.063]
[1745480944937,16.65551015,147.46,147.45,0.063]
[1745480946429,58.50449856,147.46,147.45,0.063]
[1745480950716,32.50449856,147.46,147.45,0.063]
[1745480954424,26.0,147.44,147.43,0.063]
[1745480954625,36.7637101,147.44,147.43,0.063]
[1745480956543,43.54613006,147.44,147.43,0.063]
[1745480957055,43.54613006,147.44,147.43,1e-08]
[1745480957228,85.82948346,147.44,147.42,1e-08]
[1745480957428,9.06748835,147.43,147.42,1e-08]
[1745480958341,15.85036836,147.43,147.42,1e-08]
[1745480961635,26.0,147.41,147.4,0.03]
[1745480961840,51.42395434,147.41,147.4,0.03]
[1745480962454,42.35646599,147.41,147.4,0.03]
[1745480962754,51.42395434,147.41,147.4,0.03]
[1745480963257,58.20775462,147.41,147.4,0.03]
[1745480963632,23.14026627,147.41,147.4,0.03]
[1745480963933,14.66,147.42,147.4,9.09748835]
[1745480964837,14.66,147.42,147.41,9.06748835]
[1745480965139,14.66,147.42,147.41,27.71713721]
[1745480966029,14.66,147.42,147.4,0.03]
[1745480966030,30.51089776,147.42,147.4,0.03]
[1745480966231,1.69619284,147.41,147.4,0.03]
[1745480966954,10.76368119,147.41,147.4,0.03]
[1745480967626,17.54748147,147.41,147.4,0.03]
[1745480974865,43.54748147,147.41,147.4,0.03]
[1745480975039,17.54748147,147.41,147.4,0.03]
[1745480978447,26.0,147.38,147.37,0.063]
[1745480978654,36.76451359,147.38,147.37,0.063]
[1745480979060,27.69702524,147.38,147.37,0.063]
[1745480979248,36.76451359,147.38,147.37,0.063]
[1745480980445,34.4822064,147.38,147.37,0.063]
[1745480980664,27.69702524,147.38,147.37,0.063]
[1745480981152,26.0,147.38,147.37,0.063]
[1745480981950,1.69649536,147.4,147.37,9.13048835]
[1745480982684,1.69649536,147.4,147.37,0.063]
[1745480984657,8.48076033,147.4,147.37,0.063]
[1745480986071,17.54824868,147.4,147.37,0.063]
[1745480987089,8.48076033,147.4,147.37,0.063]
[1745480987290,17.54824868,147.4,147.37,0.063]
[1745480988056,14.52,147.39,147.37,0.063]
[1745480990565,10.76393473,147.38,147.37,0.063]
[1745480991883,17.54911589,147.38,147.37,0.063]
[1745481000108,8.48162754,147.38,147.37,0.063]
[1745481000606,1.69644638,147.38,147.37,0.063]
[1745481002000,16.21650377,147.39,147.37,0.063]
[1745481003015,14.52,147.39,147.37,0.063]
[1745481004998,14.52,147.39,147.38,9.06748835]
[1745481005304,14.52,147.39,147.37,10.76998835]
[1745481005818,14.52,147.39,147.37,1.7025]
[1745481011786,14.52,147.39,147.37,0.063]
[1745481014023,10.76378421,147.38,147.37,0.063]
[1745481015530,43.54896537,147.38,147.37,0.063]
[1745481016531,17.54896537,147.38,147.37,0.063]
[1745481017205,26.0,147.37,147.36,0.03]
[1745481017399,78.12308333,147.37,147.36,0.03]
[1745481018118,41.85312993,147.37,147.36,0.03]
[1745481018701,60.50277879,147.37,147.36,0.03]
[1745481018901,96.77273219,147.37,147.35,0.03]
[1745481019113,47.03483576,147.36,147.35,0.03]
[1745481020720,53.82093782,147.36,147.35,0.03]
[1745481021207,17.55098442,147.36,147.35,0.03]
[1745481021830,53.82093782,147.36,147.35,0.03]
[1745481022222,72.47058668,147.36,147.35,0.03]
[1745481023328,18.64964886,147.35,147.33,0.03]
[1745481023632,43.69479343,147.34,147.33,0.03]
[1745481024033,25.04514457,147.34,147.33,0.03]
[1745481025729,31.83216778,147.34,147.33,0.03]
[1745481026306,1.69765622,147.34,147.33,0.03]
[1745481026512,15.97765622,147.34,147.33,0.03]
[1745481027242,14.28,147.34,147.33,0.03]
[1745481031333,14.28,147.34,147.31,10.18176323]
[1745481033236,1.69689896,147.33,147.31,1.11427488]
[1745481033539,15.97708125,147.34,147.31,1.11427488]
[1745481033836,25.0445696,147.34,147.31,1.11427488]
[1745481034543,15.97708125,147.34,147.31,1.11427488]
[1745481035045,14.28,147.34,147.31,10.18176323]
[1745481036131,14.28,147.34,147.31,1.11427488]
[1745481036525,14.28,147.34,147.31,10.18176323]
[1745481036927,14.28,147.34,147.31,1.11427488]
[1745481037132,14.28,147.34,147.31,10.18176323]
[1745481042025,23.34748835,147.34,147.31,1.11427488]
[1745481042417,10.76449894,147.33,147.3,0.03]
[1745481042639,1.69701059,147.33,147.3,0.03]
[1745481045177,1.69701059,147.33,147.31,9.06748835]
[1745481045346,14.28,147.34,147.31,9.06748835]
[1745481045651,14.28,147.34,147.33,9.06748835]
[1745481045832,14.28,147.34,147.3,18.67964886]
[1745481046028,14.28,147.34,147.3,0.03]
[1745481046235,9.06748835,147.33,147.3,0.03]
[1745481047057,25.0444965,147.34,147.3,0.03]
[1745481047558,25.0444965,147.34,147.3,9.09748835]
[1745481048434,9.06748835,147.33,147.3,0.03]
[1745481048636,10.7646474,147.33,147.3,0.03]
[1745481048840,1.69715905,147.33,147.3,0.03]
[1745481049334,23.34748835,147.34,147.3,9.09748835]
[1745481049335,15.97708487,147.34,147.3,9.09748835]
[1745481050445,31.83169142,147.34,147.3,9.09748835]
[1745481050642,25.04457322,147.34,147.3,9.09748835]
[1745481050843,31.83174323,147.34,147.3,0.03]
[1745481051435,25.04457322,147.34,147.3,0.03]
[1745481051733,15.97708487,147.34,147.3,9.09748835]
[1745481052867,15.97708487,147.34,147.3,0.03]
[1745481053264,15.97708487,147.34,147.3,9.09748835]
[1745481055652,15.97708487,147.34,147.3,0.03]
[1745481055653,25.04457322,147.34,147.3,0.03]
[1745481056762,31.83183453,147.34,147.3,0.03]
[1745481056965,9.06748835,147.33,147.3,0.03]
[1745481057749,25.04457322,147.34,147.3,0.03]
[1745481057952,31.83172687,147.34,147.3,0.03]
[1745481058351,25.04457322,147.34,147.3,0.03]
[1745481059581,9.06748835,147.31,147.3,0.03]
[1745481060567,10.76486566,147.33,147.3,0.03]
[1745481061177,15.97723389,147.34,147.3,9.09748835]
[1745481061356,14.28,147.34,147.3,9.09748835]
[1745481061876,14.28,147.34,147.31,9.06748835]
[1745481062041,14.28,147.34,147.32,9.06748835]
[1745481062374,14.28,147.34,147.3,0.03]
[1745481062552,14.28,147.34,147.31,9.06748835]
[1745481063279,1.69685024,147.38,147.33,9.06748835]
[1745481063587,14.28,147.37,147.34,1.02619256]
[1745481064658,14.28,147.37,147.33,25.43703146]
[1745481064858,14.28,147.37,147.36,9.06748835]
[1745481065064,14.28,147.37,147.34,9.06748835]
[1745481065460,14.28,147.37,147.35,9.06748835]
[1745481065660,14.28,147.37,147.36,9.06748835]
[1745481067679,233.023,147.4,147.36,9.06748835]
[1745481067871,233.023,147.4,147.36,25.43566833]
[1745481068075,0.063,147.4,147.38,9.06748835]
[1745481068272,0.063,147.4,147.39,9.06748835]
[1745481068582,0.063,147.4,147.38,9.06748835]
[1745481068949,0.063,147.4,147.36,25.43567052]
[1745481069370,0.063,147.4,147.37,9.06748835]
[1745481070187,0.063,147.4,147.38,9.06748835]
[1745481070578,0.063,147.4,147.39,9.06748835]
[1745481071282,0.063,147.4,147.38,9.06748835]
[1745481071853,0.063,147.4,147.39,9.06748835]
[1745481072062,0.063,147.4,147.39,27.71713721]
[1745481073685,0.063,147.4,147.39,35.52645316]
[1745481074388,0.063,147.4,147.39,26.45896481]
[1745481074595,0.063,147.4,147.39,35.52645316]
[1745481075190,0.063,147.43,147.39,35.52645316]
[1745481075191,0.063,147.43,147.4,18.64964886]
[1745481075367,0.063,147.43,147.42,9.06748835]
[1745481076283,0.063,147.43,147.42,27.71713721]
[1745481076488,0.063,147.43,147.42,63.98709061]
[1745481076696,0.063,147.43,147.39,29.54961685]
[1745481076994,0.063,147.43,147.42,9.06748835]
[1745481079289,0.063,147.43,147.41,1.0240281]
[1745481079472,0.063,147.43,147.42,9.06748835]
[1745481081290,0.063,147.43,147.41,1.0240281]
[1745481081501,0.063,147.43,147.42,9.06748835]
[1745481083286,0.063,147.43,147.42,34.50047732]
[1745481083986,0.063,147.43,147.42,27.71713721]
[1745481084395,0.063,147.43,147.42,71.79420941]
[1745481085991,0.063,147.43,147.42,26.45676766]
[1745481086200,0.063,147.43,147.42,70.77043072]
[1745481088379,0.063,147.43,147.42,63.98709061]
[1745481088580,0.063,147.43,147.42,71.79430555]
[1745481089781,0.063,147.44,147.42,99.34560555]
[1745481090004,0.063,147.44,147.43,27.71713721]
[1745481090181,0.063,147.45,147.43,27.71713721]
[1745481090511,0.063,147.45,147.44,19.67246471]
[1745481090705,0.063,147.45,147.44,28.73995306]
[1745481091604,0.063,147.45,147.44,35.52237302]
[1745481091987,0.063,147.45,147.44,28.73995306]
[1745481092381,0.063,147.45,147.44,35.52237302]
[1745481093104,0.063,147.45,147.44,19.67246471]
[1745481093306,0.063,147.45,147.42,9.06748835]
[1745481093605,0.063,147.45,147.43,9.06748835]
[1745481094691,0.063,147.45,147.44,9.06748835]
[1745481097227,9.13048835,147.45,147.41,1.02403273]
[1745481097510,9.06748835,147.42,147.36,9.06748835]
[1745481097808,23.26748835,147.42,147.37,9.06748835]
[1745481098015,23.26748835,147.42,147.38,18.64964886]
[1745481098399,23.26748835,147.42,147.38,9.06748835]
[1745481099308,9.06748835,147.4,147.35,18.64964886]
[1745481099695,10.76350216,147.41,147.36,9.06748835]
[1745481100008,10.76350216,147.41,147.37,9.06748835]
[1745481100394,10.76350216,147.41,147.36,9.06748835]
[1745481100701,9.06748835,147.4,147.36,9.06748835]
[1745481101204,10.76350216,147.41,147.36,9.06748835]
[1745481102614,9.06748835,147.4,147.36,9.06748835]
[1745481104102,10.76350216,147.41,147.36,9.06748835]
[1745481105231,9.06748835,147.4,147.35,18.64964886]
[1745481105518,8.47995864,147.41,147.35,9.06748835]
[1745481105519,10.76386495,147.39,147.35,9.06748835]
[1745481105692,1.6963766,147.39,147.35,9.06748835]
[1745481106486,10.76386495,147.39,147.35,9.06748835]
[1745481106697,10.76386495,147.39,147.34,0.03]
[1745481106897,10.76386495,147.39,147.35,9.06748835]
[1745481107522,9.06748835,147.38,147.34,0.03]
[1745481107728,15.89662011,147.37,147.34,9.09748835]
[1745481108110,15.89662011,147.37,147.35,9.06748835]
[1745481108305,14.2,147.37,147.35,9.06748835]
[1745481111747,14.2,147.37,147.34,0.03]
[1745481112030,14.2,147.37,147.34,9.09748835]
[1745481113255,15.89669509,147.37,147.34,0.03]
[1745481113535,22.68234115,147.37,147.34,0.03]
[1745481113707,31.7498295,147.37,147.34,0.03]
[1745481114242,9.06748835,147.36,147.34,0.03]
[1745481114536,1.69693757,147.35,147.34,0.03]
[1745481115422,14.2,147.37,147.34,9.09748835]
[1745481116040,1.69663713,147.36,147.34,0.03]
[1745481117326,8.48310126,147.36,147.34,0.03]
[1745481117522,8.48310126,147.36,147.29,18.67964886]
[1745481117523,7.016,147.31,147.29,0.03]
[1745481117717,50.96452535,147.3,147.29,0.03]
[1745481117916,1.697037,147.3,147.29,0.03]
[1745481118117,15.897037,147.3,147.29,0.03]
[1745481118323,14.2,147.3,147.29,0.03]
[1745481120414,8.4844881,147.34,147.29,9.09748835]
[1745481120635,14.2,147.33,147.31,9.06748835]
[1745481121444,14.2,147.33,147.32,9.06748835]
[1745481122745,232.86,147.35,147.32,27.71713721]
[1745481123043,232.86,147.35,147.34,9.06748835]
[1745481123841,232.86,147.35,147.32,9.06748835]
[1745481125343,232.86,147.35,147.33,9.06748835]
[1745481125737,232.86,147.35,147.32,9.06748835]
[1745481126539,232.86,147.35,147.33,9.06748835]
[1745481126945,232.86,147.35,147.32,9.06748835]
[1745481127452,232.86,147.35,147.33,9.06748835]
[1745481128249,232.86,147.35,147.32,9.06748835]
[1745481128444,1.69677999,147.34,147.3,9.06748835]
[1745481128858,10.76426834,147.34,147.29,0.03]
[1745481129154,9.06748835,147.32,147.29,0.03]
[1745481129331,14.52,147.31,147.29,0.03]
[1745481129731,16.21726301,147.31,147.29,0.03]
[1745481130555,32.07319272,147.31,147.29,0.03]
[1745481130755,9.06748835,147.3,147.29,0.03]
[1745481132231,15.8563546,147.3,147.29,0.03]
[1745481133236,20.99219563,147.3,147.29,0.03]
[1745481134850,53.84517387,147.3,147.29,1e-08]
[1745481135240,47.90582425,147.3,147.29,1e-08]
[1745481136870,18.64964886,147.29,147.28,1e-08]
[1745481137035,6.2171,147.28,147.27,0.03]
[1745481137237,34.62375876,147.28,147.27,0.03]
[1745481137742,20.42042938,147.28,147.27,0.03]
[1745481138155,60.62375876,147.28,147.27,0.03]
[1745481138753,67.41354691,147.28,147.27,0.03]
[1745481139467,53.21021753,147.28,147.27,0.03]
[1745481141640,1.69790899,147.28,147.27,0.03]
[1745481142556,1.69769958,147.29,147.27,0.03]
[1745481143449,1.69769958,147.29,147.27,14.23332938]
[1745481143654,1.69754178,147.3,147.27,14.23332938]
[1745481144468,1.69754178,147.3,147.27,0.03]
[1745481144768,20.99284123,147.29,147.27,0.03]
[1745481144976,1.69774595,147.28,147.27,0.03]
[1745481145852,1.69771305,147.3,147.27,0.03]
[1745481146447,8.48664531,147.3,147.27,0.03]
[1745481146664,22.68997469,147.3,147.27,0.03]
[1745481147679,14.20332938,147.29,147.27,0.03]
[1745481147876,1.69775502,147.28,147.27,0.03]
[1745481149059,8.48714257,147.29,147.27,0.03]
[1745481149259,22.69047195,147.29,147.27,0.03]
[1745481149468,14.20332938,147.28,147.27,0.03]
[1745481151080,20.99311753,147.28,147.27,0.03]
[1745481154170,35.19644691,147.28,147.27,0.03]
[1745481155652,53.84609577,147.28,147.26,1e-08]
[1745481155964,41.90175325,147.27,147.26,1e-08]
[1745481157265,36.79408539,147.27,147.26,1e-08]
[1745481157579,43.58433459,147.27,147.26,1e-08]
[1745481160587,34.48867307,147.27,147.26,1e-08]
[1745481160784,43.58433459,147.27,147.26,1e-08]
[1745481168998,6.3279,147.26,147.24,0.03]
[1745481169200,25.3141194,147.25,147.24,0.03]
[1745481169996,32.10529087,147.25,147.24,0.03]
[1745481170187,26.0,147.23,147.22,0.03]
[1745481170496,35.09566152,147.23,147.22,0.03]
[1745481172072,41.88775552,147.23,147.22,0.03]
[1745481174393,45.4783076,147.22,147.2,0.03]
[1745481174589,10.79465254,147.22,147.2,0.03]
[1745481174791,36.79465254,147.22,147.2,0.03]
[1745481175700,43.58720789,147.22,147.2,0.03]